fUST/lending_fUST_20250630
["ID","MTS","AMOUNT","RATE_DAILY","PERIOD"]
[368601580,1751226645793,-151.0,0.00020531,2]
[368601581,1751226645803,-460.0,0.00020531,2]
[368601582,1751226645812,-460.0,0.00020531,2]
[368601583,1751226645821,-916.81,0.00020531,2]
[368601584,1751226645830,-151.0,0.00020531,2]
[368601585,1751226645840,-460.0,0.00020531,2]
[368601586,1751226645849,-460.0,0.00020531,2]
[368601587,1751226645858,-460.0,0.00020532,2]
[368601588,1751226645867,-460.0,0.00020532,2]
[368601589,1751226645876,-529.52,0.00020532,2]
[368601590,1751226645885,-1362.56,0.00020532,2]
[368601591,1751226645895,-533.29774464,0.00020532,2]
[368601592,1751226645904,-460.0,0.00020532,2]
[368601593,1751226645912,-1286.05,0.00020532,2]
[368601594,1751226645922,-3396.45,0.00020532,2]
[368601595,1751226645931,-460.0,0.00020532,2]
[368601596,1751226645940,-468.97,0.00020532,2]
[368601597,1751226645950,-460.0,0.00020532,2]
[368601598,1751226645959,-1165.48,0.00020532,2]
[368601599,1751226645969,-594.87,0.00020532,2]
[368601600,1751226645978,-510.98,0.00020532,2]
[368601601,1751226645989,-4226.74,0.00020532,2]
[368601602,1751226645999,-661.58,0.00020532,2]
[368601603,1751226646008,-1809.38,0.00020532,2]
[368601604,1751226646017,-802.09,0.00020532,2]
[368601605,1751226646026,-1169.37,0.00020532,2]
[368601606,1751226646036,-900.23,0.00020532,2]
[368601607,1751226646045,-460.0,0.00020533,2]
[368601608,1751226646054,-465.246323,0.00020533,2]
[368601609,1751226646063,-465.246323,0.00020533,2]
[368601610,1751226646073,-545.1,0.00020533,2]
[368601611,1751226646082,-609.23,0.00020533,2]
[368601612,1751226646091,-460.0,0.00020533,2]
[368601613,1751226646101,-548.31,0.00020533,2]
[368601614,1751226646110,-460.0,0.00020533,2]
[368601615,1751226646120,-151.0,0.00020533,2]
[368601616,1751226646129,-460.0,0.00020533,2]
[368601617,1751226646138,-151.0,0.00020533,2]
[368601618,1751226646147,-151.0,0.00020533,2]
[368601619,1751226646158,-151.0,0.00020533,2]
[368601620,1751226646168,-151.0,0.00020533,2]
[368601621,1751226646177,-153.164602,0.00020533,2]
[368601622,1751226646186,-152.508771,0.00020533,2]
[368601623,1751226646194,-1625.332383,0.00020533,2]
[368601624,1751226646204,-1625.332383,0.00020533,2]
[368601625,1751226646213,-554.5,0.00020533,2]
[368601626,1751226646222,-460.0,0.00020534,2]
[368601627,1751226646231,-772.03,0.00020534,2]
[368601628,1751226646240,-698.64,0.00020534,2]
[368601629,1751226646249,-639.66,0.00020534,2]
[368601630,1751226646259,-643.59,0.00020535,2]
[368601631,1751226646267,-602.7981794,0.00020544,2]
[368601632,1751226646276,-1500.0,0.00020544,2]
[368601633,1751226646285,-990.20409029,0.00020544,2]
[368601634,1751226646294,-500.0,0.00020547,14]
[368601635,1751226646303,-3931.03026253,0.00020555,3]
[368601636,1751226646313,-230.65643113,0.00020572,2]
[368601637,1751226646322,-170.316221,0.00020579,4]
[368601638,1751226646331,-4157.50188723,0.00020599,2]
[368601639,1751226646340,-9829.0,0.000206,2]
[368601640,1751226646349,-151.0,0.000206,4]
[368601641,1751226646358,-151.0,0.000206,3]
[368601642,1751226646366,-160.0,0.000206,3]
[368601643,1751226646375,-847.31290578,0.000206,3]
[368601644,1751226646512,-1113.37603349,0.00020706,2]
[368601645,1751226646522,-1041.0,0.00020718,2]
[368601646,1751226646531,-3931.03026253,0.00020762,3]
[368601647,1751226646540,-213.82031328,0.0002077,3]
[368601648,1751226646550,-12567.05932091,0.0002077,3]
[368601649,1751226646559,-460.0,0.00020804,2]
[368601650,1751226646568,-2277.98,0.00020804,2]
[368601651,1751226646577,-2504.64,0.00020804,2]
[368601652,1751226646587,-460.0,0.00020804,2]
[368601653,1751226646596,-501.65,0.00020804,2]
[368601654,1751226646604,-2640.31,0.00020804,2]
[368601655,1751226646613,-2801.01,0.00020804,2]
[368601656,1751226646623,-1887.61130969,0.00020804,2]
[368601657,1751226646766,-916.35869031,0.00020804,2]
[368601658,1751226646776,-373.64130969,0.00020804,2]
[368601659,1751226646787,-86.35869031,0.00020804,2]
[368601660,1751226646796,-311.71730969,0.00020804,2]
[368601661,1751226647022,-500.0,0.00019159,2]
[368601662,1751226647032,-500.0,0.00019159,2]
[368601663,1751226647042,-500.0,0.00019159,2]
[368601664,1751226647051,-500.0,0.00019159,2]
[368601665,1751226647061,-500.0,0.00019159,2]
[368601666,1751226647071,-500.0,0.00019159,2]
[368601667,1751226647080,-500.0,0.00019159,2]
[368601668,1751226647090,-500.0,0.00019159,2]
[368601669,1751226647099,-500.0,0.00019159,2]
[368601670,1751226647109,-500.0,0.00019159,2]
[368601671,1751226647118,-500.0,0.00019159,2]
[368601672,1751226647127,-500.0,0.00019159,2]
[368601673,1751226647136,-362.30360028,0.00019159,2]
[368601674,1751226647145,-222.81915112,0.00019159,2]
[368601675,1751226647155,-500.0,0.00019159,2]
[368601676,1751226647165,-500.0,0.00019159,2]
[368601677,1751226647174,-500.0,0.00019159,2]
[368601678,1751226647184,-500.0,0.00019159,2]
[368601679,1751226647194,-277.95544695,0.00019178,2]
[368601680,1751226647203,-1275.73269031,0.00020804,2]
[368601681,1751226647212,-460.0,0.00020804,2]
[368601682,1751226647222,-460.0,0.00020804,2]
[368601683,1751226647231,-984.14,0.00020804,2]
[368601684,1751226647241,-657.21,0.00020804,2]
[368601685,1751226647250,-467.31,0.00020805,2]
[368601686,1751226647260,-512.55,0.00020805,2]
[368601687,1751226647269,-516.92,0.00020805,2]
[368601688,1751226647279,-827.78,0.00020805,2]
[368601689,1751226647288,-460.0,0.00020805,2]
[368601690,1751226647297,-460.0,0.00020805,2]
[368601691,1751226647307,-460.0,0.00020805,2]
[368601692,1751226647316,-460.0,0.00020805,2]
[368601693,1751226647325,-916.81,0.00020805,2]
[368601694,1751226647334,-460.0,0.00020805,2]
[368601695,1751226647343,-460.0,0.00020805,2]
[368601696,1751226647352,-467.85692387,0.00020806,2]
[368601697,1751226647361,-460.0,0.00020806,2]
[368601698,1751226647371,-529.52,0.00020806,2]
[368601699,1751226647381,-1362.56,0.00020806,2]
[368601700,1751226647391,-460.0,0.00020806,2]
[368601701,1751226647400,-1286.05,0.00020806,2]
[368601702,1751226647410,-3396.45,0.00020806,2]
[368601703,1751226647419,-460.0,0.00020806,2]
[368601704,1751226647428,-468.97,0.00020806,2]
[368601705,1751226647437,-460.0,0.00020806,2]
[368601706,1751226647446,-1165.48,0.00020806,2]
[368601707,1751226647456,-594.87,0.00020806,2]
[368601708,1751226647465,-510.98,0.00020806,2]
[368601709,1751226647475,-4226.74,0.00020806,2]
[368601710,1751226647484,-661.58,0.00020806,2]
[368601711,1751226647493,-1809.38,0.00020806,2]
[368601712,1751226647504,-802.09,0.00020806,2]
[368601713,1751226647513,-1169.37,0.00020806,2]
[368601714,1751226647523,-900.23,0.00020806,2]
[368601715,1751226647532,-151.0,0.00020807,2]
[368601716,1751226647542,-151.0,0.00020807,2]
[368601717,1751226647551,-460.0,0.00020807,2]
[368601718,1751226647560,-151.093005,0.00020807,2]
[368601719,1751226647570,-545.1,0.00020807,2]
[368601720,1751226647579,-609.23,0.00020807,2]
[368601721,1751226647588,-460.0,0.00020807,2]
[368601722,1751226647598,-548.31,0.00020807,2]
[368601723,1751226647607,-460.0,0.00020807,2]
[368601724,1751226647616,-460.0,0.00020807,2]
[368601725,1751226647625,-554.5,0.00020807,2]
[368601726,1751226647635,-151.0,0.00020808,2]
[368601727,1751226647644,-271.081272,0.00020808,2]
[368601728,1751226647656,-336.77804,0.00020808,2]
[368601729,1751226647670,-336.77804,0.00020808,2]
[368601730,1751226647679,-460.0,0.00020808,2]
[368601731,1751226647689,-772.03,0.00020808,2]
[368601732,1751226647698,-698.64,0.00020808,2]
[368601733,1751226647707,-639.66,0.00020808,2]
[368601734,1751226647717,-643.59,0.00020809,2]
[368601735,1751226647726,-151.0,0.0002081,2]
[368601736,1751226647735,-379.361453,0.0002081,2]
[368601737,1751226647745,-379.361453,0.0002081,2]
[368601738,1751226647754,-154.004525,0.0002081,2]
[368601739,1751226647763,-154.004525,0.0002081,2]
[368601740,1751226647772,-151.0,0.00020872,2]
[368601741,1751226647781,-5000.0,0.00020892,2]
[368601742,1751226647790,-151.0,0.000209,3]
[368601743,1751226647799,-2000.0,0.00020906,2]
[368601744,1751226647808,-703.1307375,0.0002093,2]
[368601745,1751226647817,-500.0,0.00020949,2]
[368601746,1751226647826,-500.0,0.00020958,15]
[368601747,1751226647835,-3931.03026253,0.00020969,4]
[368601748,1751226647846,-524.65781574,0.00020999,2]
[368601749,1751226647855,-183941.56369588,0.00020999,2]
[368601750,1751226647867,-1106.97621356,0.00020999,2]
[368601751,1751226647878,-11664.23980239,0.00020999,2]
[368601752,1751226648063,-151.0,0.00020531,2]
[368601753,1751226648073,-13034.13991627,0.00020999,2]
[368601754,1751226685137,-241.01969559,0.0001834,2]
[368601756,1751226836809,5000.0,0.000181,2]
[368601757,1751226852032,5000.0,0.000181,2]
[368601758,1751226888365,-282.93623439,0.0001824,2]
[368601759,1751226897917,5000.0,0.000181,2]
[368601760,1751226913012,5000.0,0.000181,2]
[368601761,1751226971389,5000.0,0.000181,2]
[368601762,1751226986908,3825.83646793,0.000181,2]
[368601763,1751226986931,1174.16353207,0.000181,2]
[368601764,1751226989053,500.0,0.00016972,2]
[368601765,1751226990612,173.32247966,0.00018068,2]
[368601766,1751226990634,326.67752034,0.00018068,2]
[368601767,1751227033914,5000.0,0.000181,2]
[368601768,1751227049897,285.354624,0.00017409,2]
[368601769,1751227050996,233.26358571,0.000181,2]
[368601770,1751227051019,4766.73641429,0.000181,2]
[368601771,1751227078695,-226.73641429,0.0001824,2]
[368601772,1751227082548,-152.70048686,0.0001824,2]
[368601773,1751227272757,-223.89511114,0.00018239,2]
[368601774,1751227276968,-136.45422917,0.00018239,2]
[368601775,1751227353110,17947.0679093,0.0001734,2]
[368601776,1751227353136,6952.9320907,0.0001734,2]
[368601777,1751227402129,5000.0,0.000181,2]
[368601778,1751227461672,5000.0,0.000181,2]
[368601779,1751227478663,1300.58769978,0.000181,2]
[368601780,1751227503619,215.3542767,0.00017478,2]
[368601781,1751227523555,5000.0,0.000181,2]
[368601782,1751227540666,3699.41230022,0.000181,2]
[368601783,1751227584084,-391.46128161,0.00018239,2]
[368601784,1751227587526,-74.2700863,0.00018239,2]
[368601785,1751227599545,2831.7136326,0.000181,2]
[368601786,1751227599569,2168.2863674,0.000181,2]
[368601787,1751227621577,444.304192,0.00013699,2]
[368601789,1751227658278,5000.0,0.000181,2]
[368601790,1751227673570,844.47455378,0.000181,2]
[368601791,1751227717339,5000.0,0.000181,2]
[368601792,1751227735198,4155.52544622,0.000181,2]
[368601793,1751227779460,5000.0,0.000181,2]
[368601840,1751227832125,-304.0,0.00018336,2]
[368601841,1751227832134,-300.0,0.00018336,2]
[368601843,1751227832144,-300.0,0.00018336,2]
[368601845,1751227832154,-300.0,0.00018336,2]
[368601847,1751227832163,-300.0,0.00018336,2]
[368601849,1751227832172,-1200.0,0.00018336,2]
[368601851,1751227832181,-50000.0,0.00018337,2]
[368601853,1751227832190,-460.0,0.00018337,2]
[368601855,1751227832200,-460.0,0.00018337,2]
[368601857,1751227832209,-460.0,0.00018337,2]
[368601859,1751227832218,-460.0,0.00018337,2]
[368601861,1751227832227,-460.0,0.00018337,2]
[368601863,1751227832236,-460.0,0.00018337,2]
[368601865,1751227832245,-525.07,0.00018337,2]
[368601867,1751227832254,-579.06,0.00018337,2]
[368601869,1751227832263,-460.0,0.00018337,2]
[368601871,1751227832272,-2172.33,0.00018337,2]
[368601873,1751227832281,-460.0,0.00018337,2]
[368601875,1751227832291,-460.0,0.00018337,2]
[368601877,1751227832300,-460.0,0.00018337,2]
[368601879,1751227832309,-460.0,0.00018337,2]
[368601881,1751227832318,-460.0,0.00018337,2]
[368601884,1751227832327,-460.0,0.00018337,2]
[368601886,1751227832336,-460.0,0.00018337,2]
[368601888,1751227832345,-460.0,0.00018337,2]
[368601890,1751227832354,-420.0,0.00018338,2]
[368601892,1751227832363,-460.0,0.00018338,2]
[368601894,1751227832373,-460.0,0.00018338,2]
[368601896,1751227832383,-460.0,0.00018338,2]
[368601898,1751227832392,-460.0,0.00018338,2]
[368601900,1751227832401,-460.0,0.00018338,2]
[368601902,1751227832410,-460.0,0.00018338,2]
[368601904,1751227832419,-460.0,0.00018338,2]
[368601906,1751227832428,-460.0,0.00018338,2]
[368601908,1751227832438,-460.0,0.00018338,2]
[368601910,1751227832447,-3161.16,0.00018338,2]
[368601912,1751227832457,-2985.09,0.00018338,2]
[368601914,1751227832467,-460.0,0.00018338,2]
[368601916,1751227832476,-460.0,0.00018338,2]
[368601918,1751227832485,-460.0,0.00018338,2]
[368601920,1751227832496,-573.76,0.00018338,2]
[368601922,1751227832505,-460.0,0.00018338,2]
[368601924,1751227832515,-649.15,0.00018338,2]
[368601926,1751227832524,-460.0,0.00018338,2]
[368601928,1751227832536,-460.0,0.00018338,2]
[368601930,1751227832546,-460.0,0.00018338,2]
[368601932,1751227832555,-4173.13,0.00018338,2]
[368601934,1751227832565,-3311.69,0.00018338,2]
[368601936,1751227832575,-3593.5,0.00018338,2]
[368601938,1751227832584,-494.09,0.00018338,2]
[368601940,1751227832594,-460.0,0.00018338,2]
[368601942,1751227832603,-1876.75,0.00018338,2]
[368601944,1751227832613,-505.42,0.00018338,2]
[368601946,1751227832623,-460.0,0.00018338,2]
[368601948,1751227832632,-545.51,0.00018338,2]
[368601950,1751227832641,-460.0,0.00018338,2]
[368601952,1751227832651,-460.0,0.00018338,2]
[368601954,1751227832660,-160.0,0.00018338,2]
[368601956,1751227832670,-460.0,0.00018339,2]
[368601958,1751227832679,-460.0,0.00018339,2]
[368601960,1751227832688,-460.0,0.00018339,2]
[368601962,1751227832698,-279.16606981,0.00018339,2]
[368601963,1751227832707,-460.0,0.00018339,2]
[368601965,1751227832716,-460.0,0.00018339,2]
[368601967,1751227832725,-225.52620187,0.00018339,2]
[368601970,1751227832734,-460.0,0.00018339,2]
[368601971,1751227832744,-460.0,0.00018339,2]
[368601973,1751227832753,-460.0,0.00018339,2]
[368601976,1751227832762,-460.0,0.00018339,2]
[368601978,1751227832772,-346.61310875,0.00018339,2]
[368601980,1751227832782,-331.67082645,0.00018339,2]
[368601982,1751227832791,-460.0,0.00018339,2]
[368601984,1751227832801,-376.00838907,0.00018339,2]
[368601986,1751227832811,-460.0,0.00018339,2]
[368601988,1751227832820,-299.49543788,0.00018339,2]
[368601990,1751227832829,-460.0,0.00018339,2]
[368601992,1751227832838,-500.99989822,0.00018339,2]
[368601994,1751227832848,-460.0,0.00018339,2]
[368601996,1751227832857,-460.0,0.00018339,2]
[368601998,1751227832867,-460.0,0.00018339,2]
[368602000,1751227832877,-460.0,0.00018339,2]
[368602002,1751227832886,-460.0,0.00018339,2]
[368602004,1751227832895,-460.0,0.00018339,2]
[368602006,1751227832905,-460.0,0.00018339,2]
[368602008,1751227832916,-460.0,0.00018339,2]
[368602010,1751227832925,-460.0,0.00018339,2]
[368602012,1751227832935,-460.0,0.00018339,2]
[368602014,1751227832944,-1315.02,0.00018339,2]
[368602016,1751227832954,-460.0,0.00018339,2]
[368602018,1751227832964,-460.0,0.00018339,2]
[368602020,1751227832973,-460.0,0.00018339,2]
[368602022,1751227832982,-565.87286778,0.00018339,2]
[368602024,1751227832995,-248.71713222,0.00018339,2]
[368602028,1751227833015,-460.0,0.00018339,2]
[368602030,1751227833026,-146.68286778,0.00018339,2]
[368602032,1751227833039,-313.31713222,0.00018339,2]
[368602034,1751227833049,-460.0,0.00018339,2]
[368602036,1751227833059,-255.73873486,0.00018339,2]
[368602039,1751227833072,-204.26126514,0.00018339,2]
[368602041,1751227833082,-460.0,0.00018339,2]
[368602043,1751227833092,-460.0,0.00018339,2]
[368602045,1751227833102,-460.0,0.00018339,2]
[368602047,1751227833114,-622.54,0.00018339,2]
[368602049,1751227833124,-460.0,0.00018339,2]
[368602051,1751227833134,-460.0,0.00018339,2]
[368602053,1751227833144,-460.0,0.00018339,2]
[368602055,1751227833154,-460.0,0.00018339,2]
[368602057,1751227833164,-441.16089819,0.00018339,2]
[368602059,1751227833174,-615.91,0.00018339,2]
[368602061,1751227833184,-460.0,0.00018339,2]
[368602064,1751227833194,-622.23,0.00018339,2]
[368602066,1751227833204,-460.0,0.00018339,2]
[368602068,1751227833214,-342.57760456,0.00018339,2]
[368602070,1751227833226,-117.42239544,0.00018339,2]
[368602072,1751227833236,-460.0,0.00018339,2]
[368602074,1751227833246,-223.47260456,0.00018339,2]
[368602076,1751227833258,-357.12739544,0.00018339,2]
[368602078,1751227833269,-1045.28,0.00018339,2]
[368602081,1751227833279,-460.0,0.00018339,2]
[368602083,1751227833288,-460.0,0.00018339,2]
[368602085,1751227833298,-460.0,0.00018339,2]
[368602087,1751227833308,-460.0,0.00018339,2]
[368602089,1751227833318,-957.11,0.00018339,2]
[368602091,1751227833328,-957.11,0.00018339,2]
[368602093,1751227833338,-957.11,0.00018339,2]
[368602095,1751227833347,-471.76,0.00018339,2]
[368602097,1751227833358,-4024.99,0.00018339,2]
[368602099,1751227833367,-460.0,0.00018339,2]
[368602101,1751227833378,-460.0,0.00018339,2]
[368602103,1751227833387,-484.82,0.00018339,2]
[368602105,1751227833397,-460.0,0.00018339,2]
[368602107,1751227833407,-460.0,0.00018339,2]
[368602109,1751227833417,-460.0,0.00018339,2]
[368602111,1751227833427,-1268.33,0.00018339,2]
[368602113,1751227833436,-460.0,0.00018339,2]
[368602115,1751227833446,-460.0,0.00018339,2]
[368602117,1751227833456,-460.0,0.00018339,2]
[368602119,1751227833466,-460.0,0.00018339,2]
[368602121,1751227833475,-688.52,0.00018339,2]
[368602123,1751227833485,-460.0,0.00018339,2]
[368602125,1751227833495,-460.0,0.00018339,2]
[368602128,1751227833505,-460.0,0.00018339,2]
[368602130,1751227833516,-460.0,0.00018339,2]
[368602132,1751227833526,-460.0,0.00018339,2]
[368602134,1751227833541,-809.64,0.00018339,2]
[368602136,1751227833551,-567.24,0.00018339,2]
[368602138,1751227833561,-460.0,0.00018339,2]
[368602140,1751227833571,-1187.21,0.00018339,2]
[368602142,1751227833582,-980.78,0.00018339,2]
[368602144,1751227833592,-460.0,0.00018339,2]
[368602146,1751227833602,-460.0,0.00018339,2]
[368602148,1751227833611,-460.0,0.00018339,2]
[368602150,1751227833621,-460.0,0.00018339,2]
[368602152,1751227833631,-460.0,0.00018339,2]
[368602154,1751227833640,-460.0,0.00018339,2]
[368602156,1751227833650,-460.0,0.00018339,2]
[368602158,1751227833660,-460.0,0.00018339,2]
[368602160,1751227833670,-460.0,0.00018339,2]
[368602162,1751227833680,-460.0,0.0001834,2]
[368602164,1751227833689,-545.1987383,0.0001834,2]
[368602166,1751227833699,-460.0,0.0001834,2]
[368602168,1751227833710,-243.45,0.0001834,2]
[368602171,1751227833720,-460.0,0.0001834,2]
[368602172,1751227833730,-460.0,0.0001834,2]
[368602175,1751227833739,-460.0,0.0001834,2]
[368602177,1751227833750,-460.0,0.0001834,2]
[368602179,1751227833760,-460.0,0.0001834,2]
[368602181,1751227833770,-460.0,0.0001834,2]
[368602183,1751227833780,-460.0,0.0001834,2]
[368602185,1751227833790,-460.0,0.0001834,2]
[368602186,1751227833799,-460.0,0.0001834,2]
[368602187,1751227833809,-460.0,0.0001834,2]
[368602188,1751227833818,-518.65,0.0001834,2]
[368602189,1751227833829,-460.0,0.0001834,2]
[368602190,1751227833838,-614.5,0.0001834,2]
[368602191,1751227833848,-460.0,0.0001834,2]
[368602192,1751227833857,-460.0,0.0001834,2]
[368602193,1751227833867,-460.0,0.0001834,2]
[368602194,1751227833876,-276.96288107,0.0001834,2]
[368602195,1751227833886,-460.0,0.0001834,2]
[368602196,1751227833895,-460.0,0.0001834,2]
[368602197,1751227833905,-460.0,0.0001834,2]
[368602198,1751227833915,-460.0,0.0001834,2]
[368602199,1751227833924,-460.0,0.0001834,2]
[368602200,1751227833935,-460.0,0.0001834,2]
[368602201,1751227833945,-460.0,0.0001834,2]
[368602202,1751227833955,-460.0,0.0001834,2]
[368602203,1751227833965,-460.0,0.0001834,2]
[368602204,1751227833975,-460.0,0.0001834,2]
[368602205,1751227833985,-460.0,0.0001834,2]
[368602206,1751227833995,-1043.13,0.0001834,2]
[368602207,1751227834005,-460.0,0.0001834,2]
[368602208,1751227834015,-581.11,0.0001834,2]
[368602209,1751227834024,-460.0,0.0001834,2]
[368602210,1751227834033,-460.0,0.0001834,2]
[368602211,1751227834044,-460.0,0.0001834,2]
[368602212,1751227834053,-460.0,0.0001834,2]
[368602213,1751227834063,-460.0,0.0001834,2]
[368602214,1751227834072,-460.0,0.0001834,2]
[368602215,1751227834082,-727.91,0.0001834,2]
[368602216,1751227834092,-402.34417195,0.0001834,2]
[368602217,1751227834102,-460.0,0.0001834,2]
[368602218,1751227834111,-460.0,0.0001834,2]
[368602219,1751227834121,-1267.43,0.0001834,2]
[368602220,1751227834131,-460.0,0.0001834,2]
[368602221,1751227834140,-300.37681322,0.0001834,2]
[368602227,1751227838025,-250.38702789,0.00018337,2]
[368602228,1751227838034,-460.0,0.00018339,2]
[368602229,1751227838044,-159.62318678,0.0001834,2]
[368602230,1751227838052,-460.0,0.0001834,2]
[368602231,1751227838062,-294.04031637,0.0001834,2]
[368602232,1751227838071,-460.0,0.0001834,2]
[368602233,1751227838080,-460.0,0.0001834,2]
[368602234,1751227838090,-460.0,0.0001834,2]
[368602235,1751227838099,-460.0,0.0001834,2]
[368602236,1751227838109,-460.0,0.0001834,2]
[368602237,1751227838118,-460.0,0.0001834,2]
[368602238,1751227838127,-460.0,0.0001834,2]
[368602239,1751227838136,-460.0,0.0001834,2]
[368602240,1751227838145,-426.35315701,0.0001834,2]
[368602241,1751227838154,-460.0,0.0001834,2]
[368602242,1751227838164,-550.90009187,0.0001834,2]
[368602243,1751227838173,-460.0,0.0001834,2]
[368602244,1751227838183,-460.0,0.0001834,2]
[368602245,1751227838192,-460.0,0.0001834,2]
[368602246,1751227838201,-500.0,0.0001834,2]
[368602247,1751227838211,-460.0,0.0001834,2]
[368602248,1751227838220,-597.58477591,0.00018341,2]
[368602249,1751227838229,-460.0,0.00018341,2]
[368602250,1751227838239,-460.0,0.00018341,2]
[368602251,1751227838250,-651.75,0.00018341,2]
[368602252,1751227838260,-425.54053076,0.00018341,2]
[368602253,1751227838269,-398.12231248,0.00018341,2]
[368602254,1751227838279,-460.0,0.00018341,2]
[368602255,1751227838289,-436.94811584,0.00018341,2]
[368602256,1751227838299,-460.0,0.00018341,2]
[368602257,1751227838308,-296.41138708,0.00018341,2]
[368602258,1751227838317,-460.0,0.00018341,2]
[368602259,1751227838326,-396.31568514,0.00018341,2]
[368602260,1751227838336,-460.0,0.00018341,2]
[368602261,1751227838346,-184.76156487,0.00018341,2]
[368602262,1751227838355,-607.79054759,0.00018341,2]
[368602263,1751227838365,-416.64,0.00018341,2]
[368602264,1751227838374,-500.0,0.00018341,2]
[368602265,1751227838383,-151.0,0.00018504,2]
[368602266,1751227838392,-500.0,0.00018504,2]
[368602267,1751227838402,-151.0,0.00018504,2]
[368602268,1751227838412,-151.0,0.00018504,2]
[368602269,1751227838421,-151.0,0.00018504,2]
[368602270,1751227838430,-151.0,0.00018504,2]
[368602271,1751227838440,-151.0,0.00018504,2]
[368602272,1751227838449,-151.0,0.00018504,2]
[368602273,1751227838458,-151.0,0.00018504,2]
[368602274,1751227838467,-199.12907132,0.00018504,2]
[368602275,1751227838477,-151.0,0.00018504,2]
[368602276,1751227838487,-151.0,0.00018504,2]
[368602277,1751227838496,-151.0,0.00018504,2]
[368602278,1751227838505,-151.0,0.00018504,2]
[368602279,1751227838515,-500.0,0.00018504,2]
[368602280,1751227838524,-151.0,0.00018504,2]
[368602281,1751227838538,-151.00486941,0.00018504,2]
[368602282,1751227838549,-151.0,0.00018504,2]
[368602283,1751227838559,-151.29765514,0.00018504,2]
[368602284,1751227838568,-151.0,0.00018504,2]
[368602285,1751227838579,-151.0,0.00018504,2]
[368602286,1751227838588,-151.0,0.00018504,2]
[368602287,1751227838597,-151.0,0.00018504,2]
[368602288,1751227838608,-244.33204957,0.00018504,2]
[368602289,1751227838618,-235.2097866,0.00018504,2]
[368602290,1751227838627,-151.0,0.00018504,2]
[368602291,1751227838637,-151.0,0.00018504,2]
[368602292,1751227838646,-151.0,0.00018504,2]
[368602293,1751227838655,-2936.09252435,0.00018513,2]
[368602294,1751227838665,-500.0,0.00018531,2]
[368602295,1751227838675,-199.10625364,0.00018531,2]
[368602296,1751227838684,-151.0,0.00018531,2]
[368602297,1751227838693,-151.0,0.00018531,2]
[368602298,1751227838702,-151.0,0.00018531,2]
[368602299,1751227838711,-245.0,0.00018531,2]
[368602300,1751227838720,-151.0,0.00018531,2]
[368602301,1751227838729,-151.0,0.00018531,2]
[368602302,1751227838739,-151.0,0.00018531,2]
[368602303,1751227838747,-548.8316239,0.00018531,2]
[368602304,1751227838758,-152.6351556,0.00018531,2]
[368602305,1751227838778,-151.0,0.00018531,2]
[368602306,1751227838788,-151.0,0.00018531,2]
[368602307,1751227838800,-151.0,0.00018531,2]
[368602308,1751227838809,-151.0,0.00018531,2]